Cogmind - Beta 12 @@@ ROGUE MODE // 2023.04.22 @ 10:12:06 Player: Mr Goldstein Result: Self-destructed Performance ------------- Evolutions (4) 2000 Regions Visited (6) 1200 Robots Destroyed (0) 0 Value Destroyed (0) 0 Prototype IDs (0) 0 Alien Tech Used (0) 0 Bonus (1325) 1325 TOTAL SCORE: 4525 Bonus ------- Pacifist 1325 Cogmind --------- Core Integrity 467/850 Matter 300/300 Energy 325/325 System Corruption 0% Temperature Cool (0) Movement Treading (160) Location -6/Waste Parts ------- > --- POWER (1) -------- Antimatter Reactor > --- PROPULSION (6) --- Heavy Treads Heavy Treads Heavy Treads > --- UTILITY (6) ------ Damper Plating Improved Remote Shield Advanced System Shield > --- WEAPON (2) ------- Backup Laser III Heavy Pick > --- INVENTORY (5) ---- Hybrid Antimatter Reactor Cesium-ion Thruster Cooled Cesium-ion Thruster Backup Laser III Improved Datajack Peak State ------------ > --- POWER ------------ Hybrid Antimatter Reactor > --- PROPULSION ------- Heavy Treads Heavy Treads Heavy Treads > --- UTILITY ---------- Damper Plating Improved Remote Shield Advanced System Shield > --- WEAPON ----------- Backup Laser III Heavy Pick > --- INVENTORY -------- Antimatter Reactor Cesium-ion Thruster Cooled Cesium-ion Thruster Backup Laser III Improved Datajack [Rating: 90] Favorites ----------- Power Hybrid Antimatter Reactor Engine Backup Power III Reactor Hybrid Antimatter Reactor Propulsion Heavy Treads Treads Heavy Treads Hover Unit Backup Propulsion III Flight Unit Cesium-ion Thruster Utility Damper Plating Device Improved Remote Shield Hackware Advanced System Shield Protection Damper Plating Weapon Backup Laser III Energy Gun Backup Laser III Ballistic Cannon Linear Accelerator Piercing Weapon Heavy Pick Build | -11 -10 -9 -8 -7 -6 -6 ------- Run | Jun Mat Mat Mat Fac Fac Was Slots Evolved 8 | . . 2 2 2 2 . Power . | . . . . . . . Propulsion 4 | . . 2 . 1 1 . Utility 4 | . . . 2 1 1 . Weapon . | . . . . . . . Parts Attached 17 | . . . 1 . 1 15 Power 2 | . . . . . . 2 Engine . | . . . . . . . Core . | . . . . . . . Reactor 2 | . . . . . . 2 Propulsion 8 | . . . 1 . 1 6 Treads 3 | . . . . . . 3 Leg . | . . . . . . . Wheel . | . . . . . . . Hover 3 | . . . . . . 3 Flight 2 | . . . 1 . 1 . Utility 5 | . . . . . . 5 Device 2 | . . . . . . 2 Storage . | . . . . . . . Processor . | . . . . . . . Hackware 1 | . . . . . . 1 Protection 2 | . . . . . . 2 Artifact . | . . . . . . . Weapon 2 | . . . . . . 2 Energy Gun . | . . . . . . . Energy Cannon . | . . . . . . . Ballistic Gun . | . . . . . . . Ballistic Cannon 1 | . . . . . . 1 Launcher . | . . . . . . . Special Weapon . | . . . . . . . Impact Weapon . | . . . . . . . Slashing Weapon . | . . . . . . . Piercing Weapon 1 | . . . . . . 1 Special Melee Weapon . | . . . . . . . Unidentified Prototypes . | . . . . . . . Parts Lost . | . . . . . . . Power . | . . . . . . . Propulsion . | . . . . . . . Utility . | . . . . . . . Weapon . | . . . . . . . Highest Loss Streak . | . . . . . . . To Critical Strikes . | . . . . . . . Average Slot Usage (%) 37 | . . . . . . 57 Reactor 2 | . . . . . . 4 Treads 5 | . . . . . . 8 Hover 7 | . . . . . . 11 Device 1 | . . . . . . 2 Hackware 3 | . . . . . . 4 Protection 6 | . . . . . . 9 Energy Gun 7 | . . . . . . 11 Naked Turns 422 | . 29 34 87 45 211 16 Heaviest Build 74 | . . . . . . 74 Greatest Support 210 | 3 3 3 5 3 5 210 Greatest Overweight (x) 17 | . . . . . . 17 Average Overweight (x) . | . . . . . . . Largest Inventory Capacity 5 | 5 5 5 5 5 5 5 Average Capacity 5 | 5 5 5 5 5 5 5 Most Carried 5 | . . . 3 3 5 5 Average Carried 4 | . . . 1 3 3 5 Final Capacity 5 | 5 5 5 5 5 5 5 Final Carried 5 | . . . 2 3 5 5 Class Distribution -------------------- 89% | Mutant 10% | Scavenger-Mutant Dominant Class ---------------- Mutant | -10/Materials Mutant | -9/Materials Mutant | -8/Materials Mutant | -7/Factory Mutant | -6/Factory Mutant | -6/Waste Resources | -11 -10 -9 -8 -7 -6 -6 ----------- Run | Jun Mat Mat Mat Fac Fac Was Matter Collected 323 | 146 . . . . . 177 Remotely . | . . . . . . . Salvage Created 259 | . . . . . . 259 Parts 5 | . . . . . . 5 Haulers Intercepted . | . . . . . . . Recyclers Shooed . | . . . . . . . Parts Field Recycled . | . . . . . . . Retrieved Matter . | . . . . . . . Parts Self-Destructed . | . . . . . . . Prevented . | . . . . . . . Kills | -11 -10 -9 -8 -7 -6 -6 ------- Run | Jun Mat Mat Mat Fac Fac Was Combat Hostiles Destroyed . | . . . . . . . Classes Destroyed . | . . . . . . . Best Kill Streak . | . . . . . . . Combat Bots Only . | . . . . . . . Max Kills in Single Turn . | . . . . . . . Gunslinging . | . . . . . . . Exploded . | . . . . . . . Melee . | . . . . . . . Uniques/NPCs Destroyed . | . . . . . . . Combat | -11 -10 -9 -8 -7 -6 -6 -------- Run | Jun Mat Mat Mat Fac Fac Was Damage Taken 1181 | . 51 183 544 . 403 . Core 1161 | . 51 183 544 . 383 . Absorbed by Shields . | . . . . . . . Regen/Repaired (Parts) 57 | . . . . . . 57 Core Remaining (%) 66 | 100 79 54 1 100 . . Volleys Fired . | . . . . . . . Largest . | . . . . . . . Hottest . | . . . . . . . Shots Fired . | . . . . . . . Gun . | . . . . . . . Cannon . | . . . . . . . Launcher . | . . . . . . . Special . | . . . . . . . Kinetic . | . . . . . . . Thermal . | . . . . . . . Explosive . | . . . . . . . Electromagnetic . | . . . . . . . Robot Hit Streak . | . . . . . . . Robot Miss Streak . | . . . . . . . Penetration Max . | . . . . . . . Secondary Targets . | . . . . . . . Shots Hit Robots 18 | . . . . . . 18 Core Hits 2 | . . . . . 1 1 Critical Kills . | . . . . . . . Critical Parts Destroyed . | . . . . . . . Critical Strikes 1 | . . . . . . 1 Impale 1 | . . . . . . 1 Melee Attacks 18 | . . . . . . 18 Impact . | . . . . . . . Slashing . | . . . . . . . Piercing 18 | . . . . . . 18 Sneak Attacks . | . . . . . . . Combat Hostiles . | . . . . . . . Follow-up Attacks . | . . . . . . . Damage Inflicted 621 | . . 12 36 . 14 559 Guns . | . . . . . . . Cannons . | . . . . . . . Explosions . | . . . . . . . Melee 559 | . . . . . . 559 Ramming 62 | . . 12 36 . 14 . Kinetic . | . . . . . . . Thermal . | . . . . . . . Explosive . | . . . . . . . Electromagnetic . | . . . . . . . Impact . | . . . . . . . Slashing . | . . . . . . . Piercing 559 | . . . . . . 559 Highest Corruption 2 | . . . 2 . . . Average Corruption 2 | . . . 2 . . . Corruption Purged . | . . . . . . . Corruption Blocked . | . . . . . . . Effects 1 | . . . 1 . . . Data Loss (minor) 1 | . . . 1 . . . Overload Shots . | . . . . . . . Overflow Damage . | . . . . . . . Projectiles . | . . . . . . . Explosions . | . . . . . . . Melee . | . . . . . . . Knockbacks 1 | . . 1 . . . . Impact 1 | . . 1 . . . . Kinetic . | . . . . . . . Secondary . | . . . . . . . Self-Inflicted Damage 29 | . . 6 17 . 6 . Shots . | . . . . . . . Rammed 14 | . 1 1 9 . 3 . Targets Rammed 14 | . 1 1 9 . 3 . Kicked . | . . . . . . . Crushed . | . . . . . . . Highest Temperature . | . . . . . . . Average Temperature . | . . . . . . . Received Heat Transfer 426 | . 18 42 207 . 159 . Siege Activations . | . . . . . . . Robots Corrupted . | . . . . . . . Combat Hostiles . | . . . . . . . Parts Fried . | . . . . . . . Impact Corruptions . | . . . . . . . Robots Melted . | . . . . . . . Combat Hostiles . | . . . . . . . Parts Melted . | . . . . . . . Heat Transferred . | . . . . . . . Parts Sabotaged . | . . . . . . . Parts Stolen . | . . . . . . . Parts Stripped . | . . . . . . . Power Chain Reactions . | . . . . . . . Missiles Intercepted . | . . . . . . . Alert | -11 -10 -9 -8 -7 -6 -6 ------- Run | Jun Mat Mat Mat Fac Fac Was Peak Influence 150 | . . 45 108 64 150 52 Initial 52 | . . . 18 49 30 52 Average 37 | . . 21 59 55 68 27 Maximum Alert Level . | . . . . . . . Low Security (%) 100 | 100 100 100 100 100 100 100 Level 1 . | . . . . . . . Level 2 . | . . . . . . . Level 3 . | . . . . . . . Level 4 . | . . . . . . . Level 5 . | . . . . . . . High Security . | . . . . . . . Max Security . | . . . . . . . Squads Dispatched 5 | . 1 2 1 . 1 . Investigation 3 | . 1 1 . . 1 . Extermination . | . . . . . . . Reinforcement 2 | . . 1 1 . . . Assault . | . . . . . . . Garrison . | . . . . . . . Intercept . | . . . . . . . Searches Triggered . | . . . . . . . Construction Impeded . | . . . . . . . Haulers Reinforced . | . . . . . . . Active Scanning Responses . | . . . . . . . Cargo Convoy Interrupts . | . . . . . . . Stealth | -11 -10 -9 -8 -7 -6 -6 --------- Run | Jun Mat Mat Mat Fac Fac Was Distress Signals 2 | . . . 1 1 . . Communications Jammed . | . . . . . . . Distress Signals . | . . . . . . . Times Spotted 43 | . 5 8 17 4 9 . Peak Tracking Total 15 | . 5 6 15 4 5 . Tactical Retreats 2 | . . . 1 . 1 . Traps | -11 -10 -9 -8 -7 -6 -6 ------- Run | Jun Mat Mat Mat Fac Fac Was Traps Triggered 4 | . 1 1 1 . 1 . Indirectly . | . . . . . . . Trap Hack Attempts . | . . . . . . . Triggered . | . . . . . . . Disarmed . | . . . . . . . Reprogrammed . | . . . . . . . Reused . | . . . . . . . Traps Extracted . | . . . . . . . Installed . | . . . . . . . Triggered . | . . . . . . . Machines | -11 -10 -9 -8 -7 -6 -6 ---------- Run | Jun Mat Mat Mat Fac Fac Was Machines Disabled . | . . . . . . . Max in Single Turn . | . . . . . . . Machines Repaired . | . . . . . . . Machines Sabotaged . | . . . . . . . Overloaded Fab Kills . | . . . . . . . Hacking | -11 -10 -9 -8 -7 -6 -6 --------- Run | Jun Mat Mat Mat Fac Fac Was Machines Accessed 2 | . . . . . 2 . Terminals 1 | . . . . . 1 . Fabricators . | . . . . . . . Repair Stations . | . . . . . . . Recycling Units . | . . . . . . . Scanalyzers . | . . . . . . . Garrison Access 1 | . . . . . 1 . Total Hacks 5 | . . . . . 5 . Successful . | . . . . . . . Failed 5 | . . . . . 5 . Catastrophic . | . . . . . . . Database Lockouts . | . . . . . . . Manual . | . . . . . . . Terminals 3 | . . . . . 3 . Fabricators . | . . . . . . . Repair Stations . | . . . . . . . Recycling Units . | . . . . . . . Scanalyzers . | . . . . . . . Garrison Access 2 | . . . . . 2 . Terminal Hacks . | . . . . . . . Fabricator Hacks . | . . . . . . . Repair Station Hacks . | . . . . . . . Recycling Unit Hacks . | . . . . . . . Scanalyzer . | . . . . . . . Garrison Access Hacks . | . . . . . . . Unauthorized Hacks . | . . . . . . . Terminals . | . . . . . . . Fabricators . | . . . . . . . Repair Stations . | . . . . . . . Recycling Units . | . . . . . . . Scanalyzers . | . . . . . . . Garrison Access . | . . . . . . . Data Cores Recovered . | . . . . . . . Used . | . . . . . . . Hacking Detections 2 | . . . . . 2 . Full Trace Events 1 | . . . . . 1 . Feedback Events . | . . . . . . . Feedback Blocked . | . . . . . . . Robot Schematics Acquired . | . . . . . . . Robots Built . | . . . . . . . Authchips . | . . . . . . . Time . | . . . . . . . Total Robot Build Rating . | . . . . . . . Part Schematics Acquired . | . . . . . . . Parts Built . | . . . . . . . Authchips . | . . . . . . . Time . | . . . . . . . Total Part Build Rating . | . . . . . . . Parts Repaired . | . . . . . . . Time . | . . . . . . . Parts Recycled . | . . . . . . . Recycled Matter . | . . . . . . . Retrieved Matter . | . . . . . . . Retrieved Components . | . . . . . . . Parts Scanalyzed . | . . . . . . . Part Schematics Acquired . | . . . . . . . Parts Damaged . | . . . . . . . Bothacking | -11 -10 -9 -8 -7 -6 -6 ------------ Run | Jun Mat Mat Mat Fac Fac Was Used RIF Installer . | . . . . . . . Robots Hacked . | . . . . . . . Non-combat . | . . . . . . . Combat . | . . . . . . . Robot Hacks Applied . | . . . . . . . Relay Couplers Released . | . . . . . . . Fabnet Peak Effective % . | . . . . . . . Robots Rewired . | . . . . . . . Allies Hacked . | . . . . . . . Hacks Repelled . | . . . . . . . Allies | -11 -10 -9 -8 -7 -6 -6 -------- Run | Jun Mat Mat Mat Fac Fac Was Total Allies 20 | . . . . . . 20 Largest Group 20 | . . . . . . 20 Highest-Rated Group 821 | . . . . . . 821 Highest-Rated Ally 50 | . . . . . . 50 Total Orders . | . . . . . . . Ally Attacks . | . . . . . . . Total Damage . | . . . . . . . Kills . | . . . . . . . Allies Corrupted . | . . . . . . . Allies Melted . | . . . . . . . Intel | -11 -10 -9 -8 -7 -6 -6 ------- Run | Jun Mat Mat Mat Fac Fac Was Robot Analysis Total . | . . . . . . . Derelict Logs Recovered . | . . . . . . . Drone Launches . | . . . . . . . Drone Recoveries . | . . . . . . . Exploration | -11 -10 -9 -8 -7 -6 -6 ------------- Run | Jun Mat Mat Mat Fac Fac Was Turns Passed 1189 | 11 29 34 91 45 214 765 Spaces Moved 1118 | 22 56 67 159 89 416 309 Core 826 | 22 56 67 149 89 410 33 Treads 203 | . . . . . . 203 Legs . | . . . . . . . Wheels . | . . . . . . . Hover 73 | . . . . . . 73 Flight 16 | . . . 10 . 6 . Fastest Speed 35 | 50 50 50 35 50 35 50 Average Speed 88 | 50 50 50 49 50 49 190 Slowest Speed 900 | 50 50 50 50 50 50 900 Overloaded Moves . | . . . . . . . Propulsion Burnouts . | . . . . . . . Robots Hopped 2 | . . . 1 . 1 . Cave-ins Triggered . | . . . . . . . Exploration Rate (%) 24 | 3 20 10 31 4 18 82 Regions Visited 6 Branch Regions . Pre-discovered Areas . | . . . . . . . Known Exits Taken . | . . . . . . . Unknown Exits Taken 5 | 1 1 1 1 1 . . Scrap Searched . | . . . . . . . Spaces Dug . | . . . . . . . Terrain Destroyed . | . . . . . . . Melee . | . . . . . . . Projectile . | . . . . . . . AOE . | . . . . . . . Terrain Rammed . | . . . . . . . Walls Destroyed . | . . . . . . . Machines Disabled . | . . . . . . . Actions | -11 -10 -9 -8 -7 -6 -6 --------- Run | Jun Mat Mat Mat Fac Fac Was Total 1270 | 21 56 67 170 89 422 445 Wait 86 | . . . . . . 86 Move 1111 | 21 56 67 156 88 414 309 Hop 2 | . . . 1 . 1 . Pick Up 6 | . . . 3 . 2 1 Fast Attach 13 | . . . . . . 13 Attach 2 | . . . 1 . 1 . Detach 2 | . . . . 1 1 . Swap 2 | . . . . . . 2 Drop 12 | . . . . . . 12 Fire . | . . . . . . . Melee 18 | . . . . . . 18 Ram 12 | . . . 9 . 3 . Kick . | . . . . . . . Crush . | . . . . . . . Escape Stasis . | . . . . . . . Rewire 4 | . . . . . . 4 Trap . | . . . . . . . Miscellaneous . | . . . . . . . Route ------- -11/Junkyard -10/Materials -9/Materials -8/Materials (discovered 2 exits: [*Fac] / [*Sto]) -7/Factory -6/Factory -6/Waste (discovered 1 exit: [*Fac]) History --------- Turn | Location | Event 4 | -11/Junkyard | Discovered new exit (range 16) 12 | -11/Junkyard | Entered Materials 33 | -10/Materials | Discovered new exit (range 15) 41 | -10/Materials | Entered another Materials area 41 | -9/Materials | Evolved 2 slots: Propulsion x2 68 | -9/Materials | Discovered new exit (range 16) 75 | -9/Materials | Entered another Materials area 75 | -8/Materials | Evolved 2 slots: Utility x2 105 | -8/Materials | Discovered new exit (range 15) 130 | -8/Materials | Core integrity fell below 50% 151 | -8/Materials | Core integrity fell below 20% 158 | -8/Materials | Discovered new exit (range 15) 166 | -8/Materials | Entered Factory 166 | -7/Factory | Evolved 2 slots: Propulsion x1, Utility x1 204 | -7/Factory | Discovered new exit (range 16) 211 | -7/Factory | Entered another Factory area 211 | -6/Factory | Evolved 2 slots: Propulsion x1, Utility x1 301 | -6/Factory | Build established: Mutant 425 | -6/Factory | Sucked down chute 425 | -6/Factory | Entered Waste 426 | -6/Waste | Joined by Warlord forces that had cleared the area 441 | -6/Waste | Found Damper Plating 648 | -6/Waste | Discovered new exit (range 11) 1190 | -6/Waste | Self-destructed Last Messages --------------- 00796_ Attempting to rewire N9-DFH(g). 00796_ N9-DFH(g) is broken beyond repair. 00802_ Dropped Datajack. 00802_ Acquired Antimatter Reactor. 00837_ Dropped Imp. Propulsion Shielding. 00837_ Acquired Imp. Remote Force Field. 00839_ Dropped Imp. Remote Force Field. 00858_ Acquired Imp. Remote Shield. 00862_ JC-H7P(m) repairs Imp. Remote Shield. 01060_ Sneak attack on C-40 Crusher. 01060_ C-40 Crusher suffers critical hit (Impale). 01064_ Sneak attack on C-40 Crusher. 01112_ C-40 Crusher destroyed. 01117_ Dropped Backup Propulsion III. 01117_ Dropped Antigrav System. 01118_ Acquired Hvy. Treads. 01125_ 9M-S4T(m) repairs Antimatter Reactor. 01133_ Acquired 50 matter. 01139_ Attempting to rewire N9-DFH(g). 01139_ N9-DFH(g) is broken beyond repair. Map ----- +----------------------------------------------------+ | ???????????# %!#??????# #??????# #??????# | | ???????????# ! #??????# #??????# #??????# | | ???????????# #??????# #??????# #??????# | | ?????????### ######## #??????# #??????# | | ?????????# #??????# #??????# | | ?????????# #??????# #??????# | | ?????????# #??????# #??????# | | ?????????# #??????# #??????# | | ?????????### ######## #??????# #??????# | | #########??# #??????# #??????# #??????# | | #??# #??????# #??????# #??????# | | #??# #??????# #??????# #??????# | | #### ######## ! ######## ######## * | | | | ! | | [ | | ][ !! | | #### ######## ######## ######## | | #??# #??????# #??????# #??????# | | #??# #??????# #??????# #??????# | | #########??# #??????# #??????# #??????# | | ?????????### #??????# ########g ######## = | | ?????????# #??????# dg lgg | | ?????????# #??????# gsg dgm | | ?????????# #??????# = g g | | ?????????# #??????#=@!mgg m | | ?????????### #??????#!%* ######## ######## | | ???????????# #??????# ! #??????# % #??????# | | ???????????# #??????# #??????# /#??????# | | ???????????# #??????# #??????# #??????# | | ???????????# #??????# #??????# #??????# | | ???????????######??????######??????######??????### | | ?????????????????????????????????????????????????? | | ?????????????????????????????????????????????????? | | ?????????????????????????????????????????????????? | | ?????????????????????????????????????????????????? | | ?????????????????????????????????????????????????? | | ?????????????????????????????????????????????????? | | ?????????????????????????????????????????????????? | | ?????????????????????????????????????????????????? | | ?????????????????????????????????????????????????? | | ?????????????????????????????????????????????????? | | ?????????????????????????????????????????????????? | | ?????????????????????????????????????????????????? | | ?????????????????????????????????????????????????? | | ?????????????????????????????????????????????????? | | ?????????????????????????????????????????????????? | | ?????????????????????????????????????????????????? | | ?????????????????????????????????????????????????? | | ?????????????????????????????????????????????????? | +----------------------------------------------------+ Best States ------------- Heat Dissipation 37 Energy Generation 21 Energy Capacity 1100 Matter Stores 300 Matter Capacity 300 Sight Range 16 Terrain Scan Density 10 Armor Coverage 1600 Resistance: EM 90 Propulsion Shielding 66 Evasion (%) 63 Recoil Reduction 6 Defensive Hacking 14 Item Schematics ----------------- None Robot Schematics ------------------ None Fabricated ------------ Nothing Alien Tech Used ----------------- None Achievements -------------- None Challenges ------------ None Game ------ Seed utilitymeleebeamcaster Manual? 1 Play Time 00:09:41 Cumulative 131.7 hours Start 2023.04.22 @ 10:03:13 End 2023.04.22 @ 10:12:06 Sessions 1 Manual Loads 0 Difficulty Rogue Special Mode None Game No. 393 Rogue 393 Adventurer 0 Explorer 0 Win Type - Total 4 Types 4/0/0/0/0/0/0/0/0 Lore% 60 Gallery% 64 Achievement% 54 Wizard Run 0 Options --------- ASCII 0 Keyboard 0 Movement Numpad Keybinds 0 Fullscreen 1 Font 16/SmallcapsGlow Map View 75x55 Tactical HUD 1 Map Filters NONE Filters NONE Steam 1 RUN: 2da90f4e-9151-4778-9d0d-e59774bdb8d4